[Event "*** SCC Grand Prix: Titled Tuesday Blitz"]
[Site "Chess.com"]
[Date "2020.06.02"]
[Round "5"]
[White "Semetey"]
[Black "zajka-molotok"]
[Result "1-0"]
[WhiteElo "2529"]
[BlackElo "2374"]
[TimeControl "180+1"]
[EndTime "10:59:00 PDT"]
[Termination "Semetey won by resignation"]

1. d4 {[%clk 0:03:00.9]} 1... Nf6 {[%clk 0:02:58.9]} 2. Nf3 {[%clk 0:03:00.1]}
2... g6 {[%clk 0:02:58.8]} 3. Bg5 {[%clk 0:02:59.8]} 3... Bg7 {[%clk 0:02:58.9]}
4. c3 {[%clk 0:02:59.9]} 4... O-O {[%clk 0:02:58.4]} 5. Nbd2 {[%clk 0:02:59.9]}
5... d5 {[%clk 0:02:57.2]} 6. e3 {[%clk 0:02:58.8]} 6... c5 {[%clk 0:02:57.2]}
7. dxc5 {[%clk 0:02:40.9]} 7... a5 {[%clk 0:02:42.1]} 8. a4 {[%clk 0:02:27.8]}
8... Nbd7 {[%clk 0:02:38.5]} 9. Nb3 {[%clk 0:02:23.6]} 9... Qc7 {[%clk
0:02:29.3]} 10. Bf4 {[%clk 0:02:23]} 10... e5 {[%clk 0:02:24.3]} 11. Bg3 {[%clk
0:02:23.1]} 11... Re8 {[%clk 0:01:50.1]} 12. Bb5 {[%clk 0:02:16.5]} 12... Re7
{[%clk 0:01:26.5]} 13. O-O {[%clk 0:02:15]} 13... Ne4 {[%clk 0:01:13.3]} 14.
Qxd5 {[%clk 0:02:11.3]} 14... Ndxc5 {[%clk 0:01:09.6]} 15. Nxc5 {[%clk
0:01:56.1]} 15... Nxc5 {[%clk 0:01:08.6]} 16. b4 {[%clk 0:01:52.1]} 16... Na6
{[%clk 0:00:46.9]} 17. Rac1 {[%clk 0:01:21.4]} 17... Be6 {[%clk 0:00:40.6]} 18.
Qd2 {[%clk 0:01:17.7]} 18... Rd8 {[%clk 0:00:38.1]} 19. Qb2 {[%clk 0:01:01.5]}
19... Bg4 {[%clk 0:00:36.9]} 20. Rfd1 {[%clk 0:00:48.7]} 20... Qc8 {[%clk
0:00:22.1]} 21. Rxd8+ {[%clk 0:00:28]} 21... Qxd8 {[%clk 0:00:23]} 22. Nd2
{[%clk 0:00:24.9]} 22... e4 {[%clk 0:00:20.4]} 23. Bxa6 {[%clk 0:00:19.9]} 23...
bxa6 {[%clk 0:00:19.7]} 24. Nc4 {[%clk 0:00:20.5]} 24... axb4 {[%clk 0:00:18.6]}
25. Qxb4 {[%clk 0:00:21.4]} 25... h5 {[%clk 0:00:16]} 26. h3 {[%clk 0:00:20.1]}
26... Be6 {[%clk 0:00:13.6]} 27. Nd6 {[%clk 0:00:19.6]} 27... Rd7 {[%clk
0:00:12.7]} 28. Nxe4 {[%clk 0:00:19.5]} 28... Bf8 {[%clk 0:00:12.4]} 29. Qb2
{[%clk 0:00:15.1]} 29... h4 {[%clk 0:00:12.5]} 30. Be5 {[%clk 0:00:14.6]} 30...
Be7 {[%clk 0:00:11.9]} 31. c4 {[%clk 0:00:14.3]} 31... Rd1+ {[%clk 0:00:10.1]}
32. Rxd1 {[%clk 0:00:14.1]} 32... Qxd1+ {[%clk 0:00:10.7]} 33. Kh2 {[%clk
0:00:15]} 33... Qd8 {[%clk 0:00:10.3]} 34. Nf6+ {[%clk 0:00:14.2]} 34... Kf8
{[%clk 0:00:10.1]} 35. Nh7+ {[%clk 0:00:13.4]} 35... Ke8 {[%clk 0:00:10]} 36.
Nf6+ {[%clk 0:00:13.4]} 36... Kf8 {[%clk 0:00:10.1]} 37. f4 {[%clk 0:00:14]}
37... Bxc4 {[%clk 0:00:08.2]} 38. Qc3 {[%clk 0:00:12.7]} 38... Be6 {[%clk
0:00:08]} 39. Nh7+ {[%clk 0:00:11.6]} 39... Ke8 {[%clk 0:00:08]} 40. Bf6 {[%clk
0:00:12]} 40... Bxf6 {[%clk 0:00:06.4]} 41. Nxf6+ {[%clk 0:00:11.8]} 41... Kf8
{[%clk 0:00:06.8]} 42. Ne4 {[%clk 0:00:10.6]} 42... Qd7 {[%clk 0:00:03]} 43. a5
{[%clk 0:00:10.1]} 43... Kg8 {[%clk 0:00:02.8]} 44. Nf6+ {[%clk 0:00:09.5]} 1-0

[Event "*** SCC Grand Prix: Titled Tuesday Blitz"]
[Site "Chess.com"]
[Date "2020.06.02"]
[Round "5"]
[White "capatl"]
[Black "tteshan"]
[Result "0-1"]
[WhiteElo "2442"]
[BlackElo "2246"]
[TimeControl "180+1"]
[EndTime "10:59:01 PDT"]
[Termination "tteshan won by resignation"]

1. Nf3 {[%clk 0:03:00.9]} 1... c5 {[%clk 0:02:55.2]} 2. g3 {[%clk 0:02:59.8]}
2... Nc6 {[%clk 0:02:55.2]} 3. Bg2 {[%clk 0:02:59]} 3... g6 {[%clk 0:02:55.5]}
4. d4 {[%clk 0:02:58.2]} 4... cxd4 {[%clk 0:02:55.1]} 5. Nxd4 {[%clk 0:02:59.1]}
5... Bg7 {[%clk 0:02:55.5]} 6. Nb3 {[%clk 0:02:42.6]} 6... Nf6 {[%clk
0:02:55.1]} 7. c4 {[%clk 0:02:32.1]} 7... O-O {[%clk 0:02:54.6]} 8. O-O {[%clk
0:02:32]} 8... d6 {[%clk 0:02:54.4]} 9. Nc3 {[%clk 0:02:22.4]} 9... Be6 {[%clk
0:02:53.7]} 10. c5 {[%clk 0:02:08.5]} 10... d5 {[%clk 0:02:41.3]} 11. e3 {[%clk
0:01:47.6]} 11... Rc8 {[%clk 0:02:39.2]} 12. Nd4 {[%clk 0:01:41.4]} 12... Nxd4
{[%clk 0:02:38]} 13. exd4 {[%clk 0:01:39.6]} 13... Bg4 {[%clk 0:02:35.1]} 14.
Qa4 {[%clk 0:01:32.9]} 14... a6 {[%clk 0:02:28.6]} 15. Be3 {[%clk 0:01:23.6]}
15... h5 {[%clk 0:02:19.6]} 16. b4 {[%clk 0:01:17.7]} 16... Bf5 {[%clk
0:02:16.9]} 17. Qb3 {[%clk 0:01:06]} 17... Bd3 {[%clk 0:02:09.7]} 18. Rfd1
{[%clk 0:01:03.1]} 18... Bc4 {[%clk 0:02:10]} 19. Qb2 {[%clk 0:00:58.6]} 19...
Qd7 {[%clk 0:02:00.7]} 20. a4 {[%clk 0:00:57.4]} 20... Ra8 {[%clk 0:01:55.8]}
21. Bf4 {[%clk 0:00:52]} 21... Qf5 {[%clk 0:01:50.2]} 22. Be5 {[%clk 0:00:49.3]}
22... Rfe8 {[%clk 0:01:34.4]} 23. Rd2 {[%clk 0:00:44.7]} 23... e6 {[%clk
0:01:19.1]} 24. Nd1 {[%clk 0:00:39.2]} 24... Bh6 {[%clk 0:00:52.5]} 25. f4
{[%clk 0:00:36.5]} 25... Ng4 {[%clk 0:00:41.7]} 26. Qc3 {[%clk 0:00:23.4]} 26...
Nxe5 {[%clk 0:00:37.9]} 27. dxe5 {[%clk 0:00:19.5]} 27... h4 {[%clk 0:00:35.4]}
28. Ne3 {[%clk 0:00:19]} 28... Qh5 {[%clk 0:00:30.7]} 29. Nxc4 {[%clk
0:00:18.5]} 29... dxc4 {[%clk 0:00:30.8]} 30. Bf3 {[%clk 0:00:18.4]} 30... Qf5
{[%clk 0:00:25.5]} 31. Qxc4 {[%clk 0:00:18.4]} 31... hxg3 {[%clk 0:00:23.7]} 32.
hxg3 {[%clk 0:00:18.3]} 32... Qh3 {[%clk 0:00:22.8]} 33. Kf2 {[%clk 0:00:18.4]}
33... Qh2+ {[%clk 0:00:22.4]} 34. Bg2 {[%clk 0:00:18.2]} 34... Qh5 {[%clk
0:00:20.3]} 35. Rh1 {[%clk 0:00:17.1]} 35... Qf5 {[%clk 0:00:18]} 36. Be4 {[%clk
0:00:17.2]} 36... Qg4 {[%clk 0:00:17.6]} 37. Bf3 {[%clk 0:00:17.5]} 37... Qf5
{[%clk 0:00:17.5]} 38. Rh5 {[%clk 0:00:17.5]} 38... gxh5 {[%clk 0:00:17.1]} 39.
Ke3 {[%clk 0:00:16.2]} 39... Rad8 {[%clk 0:00:14.5]} 40. Rd6 {[%clk 0:00:15.9]}
40... Qb1 {[%clk 0:00:12.8]} 41. Bxb7 {[%clk 0:00:15]} 41... Qg1+ {[%clk
0:00:11.5]} 42. Kf3 {[%clk 0:00:14.7]} 42... Qh1+ {[%clk 0:00:11.2]} 43. Kf2
{[%clk 0:00:15.1]} 43... Qxb7 {[%clk 0:00:11.9]} 44. c6 {[%clk 0:00:14.6]} 44...
Qb6+ {[%clk 0:00:11.7]} 45. Kf3 {[%clk 0:00:13.8]} 45... Rc8 {[%clk 0:00:11]}
46. c7 {[%clk 0:00:14]} 46... Qxc7 {[%clk 0:00:10.9]} 47. Qxa6 {[%clk
0:00:13.9]} 47... Qc3+ {[%clk 0:00:10.9]} 0-1

[Event "*** SCC Grand Prix: Titled Tuesday Blitz"]
[Site "Chess.com"]
[Date "2020.06.02"]
[Round "5"]
[White "mikerahal"]
[Black "m-garcett"]
[Result "0-1"]
[WhiteElo "2257"]
[BlackElo "2055"]
[TimeControl "180+1"]
[EndTime "10:59:02 PDT"]
[Termination "m-garcett won on time"]

1. e4 {[%clk 0:03:00.9]} 1... c5 {[%clk 0:02:59.3]} 2. Nf3 {[%clk 0:03:00.6]}
2... d6 {[%clk 0:02:59.3]} 3. Bb5+ {[%clk 0:03:00]} 3... Nd7 {[%clk 0:02:56]} 4.
O-O {[%clk 0:02:59.5]} 4... a6 {[%clk 0:02:55.7]} 5. Bd3 {[%clk 0:02:59.4]} 5...
g6 {[%clk 0:02:52.4]} 6. c3 {[%clk 0:02:53.4]} 6... Bg7 {[%clk 0:02:52.6]} 7.
Bc2 {[%clk 0:02:52.6]} 7... Ngf6 {[%clk 0:02:51.1]} 8. d4 {[%clk 0:02:52.7]}
8... Qc7 {[%clk 0:02:43.8]} 9. Re1 {[%clk 0:02:48.8]} 9... e5 {[%clk 0:02:37.2]}
10. dxe5 {[%clk 0:02:34.5]} 10... dxe5 {[%clk 0:02:35.7]} 11. c4 {[%clk
0:02:34.3]} 11... O-O {[%clk 0:02:34.1]} 12. Nc3 {[%clk 0:02:33.6]} 12... Rd8
{[%clk 0:02:14.2]} 13. Bg5 {[%clk 0:02:08.7]} 13... h6 {[%clk 0:02:13.2]} 14.
Be3 {[%clk 0:02:08]} 14... Nf8 {[%clk 0:02:08.5]} 15. Nd5 {[%clk 0:02:06.5]}
15... Nxd5 {[%clk 0:02:06.3]} 16. cxd5 {[%clk 0:01:47.3]} 16... b5 {[%clk
0:02:02.9]} 17. a4 {[%clk 0:01:43.6]} 17... Bd7 {[%clk 0:01:57.7]} 18. Qe2
{[%clk 0:01:39.3]} 18... c4 {[%clk 0:01:57.1]} 19. a5 {[%clk 0:01:35.9]} 19...
Qd6 {[%clk 0:01:47.5]} 20. Bb6 {[%clk 0:01:35.5]} 20... Rdc8 {[%clk 0:01:47.7]}
21. Nd2 {[%clk 0:01:12.1]} 21... c3 {[%clk 0:01:35.9]} 22. bxc3 {[%clk
0:01:12.1]} 22... Rxc3 {[%clk 0:01:36.8]} 23. Bd3 {[%clk 0:00:59.4]} 23... Rac8
{[%clk 0:01:35.2]} 24. f3 {[%clk 0:00:41.3]} 24... f5 {[%clk 0:01:28.1]} 25. Kh1
{[%clk 0:00:36.1]} 25... f4 {[%clk 0:01:23.5]} 26. Qf1 {[%clk 0:00:29.2]} 26...
g5 {[%clk 0:01:21.6]} 27. Rec1 {[%clk 0:00:28.5]} 27... Qb4 {[%clk 0:01:07.8]}
28. Rcb1 {[%clk 0:00:25.2]} 28... Qd6 {[%clk 0:01:03.2]} 29. Rc1 {[%clk
0:00:25.4]} 29... Be8 {[%clk 0:00:50.1]} 30. Rxc3 {[%clk 0:00:24]} 30... Rxc3
{[%clk 0:00:51]} 31. Rc1 {[%clk 0:00:23.8]} 31... Qb4 {[%clk 0:00:46.7]} 32. Rb1
{[%clk 0:00:22.9]} 32... Qd6 {[%clk 0:00:38.7]} 33. Rc1 {[%clk 0:00:22.9]} 33...
Qa3 {[%clk 0:00:34.1]} 34. Ra1 {[%clk 0:00:19]} 34... Qb2 {[%clk 0:00:32.9]} 35.
Rd1 {[%clk 0:00:10.7]} 35... Nd7 {[%clk 0:00:26.3]} 36. d6 {[%clk 0:00:10.5]}
36... Nc5 {[%clk 0:00:25.5]} 37. Bxc5 {[%clk 0:00:09.4]} 37... Rxc5 {[%clk
0:00:24.9]} 38. Qe2 {[%clk 0:00:08.6]} 38... Bd7 {[%clk 0:00:24.2]} 39. Rb1
{[%clk 0:00:05.6]} 39... Rc1+ {[%clk 0:00:24.1]} 40. Rxc1 {[%clk 0:00:04.8]}
40... Qxc1+ {[%clk 0:00:25]} 41. Nf1 {[%clk 0:00:05.5]} 41... Bf8 {[%clk
0:00:24.1]} 42. h3 {[%clk 0:00:05.7]} 42... Bxd6 {[%clk 0:00:23.8]} 43. Qa2+
{[%clk 0:00:04.9]} 43... Kg7 {[%clk 0:00:22.1]} 44. Qd5 {[%clk 0:00:05.5]} 44...
Qc5 {[%clk 0:00:19.4]} 45. Qb7 {[%clk 0:00:05.7]} 45... Qc7 {[%clk 0:00:18.6]}
46. Qd5 {[%clk 0:00:05.8]} 46... Bc6 {[%clk 0:00:18.2]} 47. Qe6 {[%clk
0:00:05.5]} 47... Qd7 {[%clk 0:00:17.9]} 48. Qb3 {[%clk 0:00:02.7]} 48... Bc7
{[%clk 0:00:17]} 0-1

[Event "*** SCC Grand Prix: Titled Tuesday Blitz"]
[Site "Chess.com"]
[Date "2020.06.02"]
[Round "5"]
[White "MilanJeremic"]
[Black "talman67"]
[Result "0-1"]
[WhiteElo "2243"]
[BlackElo "2550"]
[TimeControl "180+1"]
[EndTime "10:59:03 PDT"]
[Termination "talman67 won on time"]

1. d4 {[%clk 0:02:55.3]} 1... Nf6 {[%clk 0:02:59.3]} 2. Nf3 {[%clk 0:02:54.2]}
2... e6 {[%clk 0:02:59.7]} 3. g3 {[%clk 0:02:53.6]} 3... c5 {[%clk 0:02:59.6]}
4. e3 {[%clk 0:02:53.2]} 4... cxd4 {[%clk 0:02:58.6]} 5. exd4 {[%clk 0:02:52.3]}
5... b6 {[%clk 0:02:59.2]} 6. Bg2 {[%clk 0:02:51.8]} 6... Bb7 {[%clk 0:02:59.8]}
7. O-O {[%clk 0:02:51]} 7... Be7 {[%clk 0:02:59.8]} 8. Bg5 {[%clk 0:02:50.2]}
8... O-O {[%clk 0:02:59.4]} 9. c3 {[%clk 0:02:49.4]} 9... d6 {[%clk 0:02:59.4]}
10. Bxf6 {[%clk 0:02:48.6]} 10... Bxf6 {[%clk 0:02:59.4]} 11. Nbd2 {[%clk
0:02:48.3]} 11... Nd7 {[%clk 0:02:59.8]} 12. h4 {[%clk 0:02:47.9]} 12... b5
{[%clk 0:02:58.7]} 13. a4 {[%clk 0:02:44.3]} 13... a6 {[%clk 0:02:58.1]} 14. Re1
{[%clk 0:02:40.3]} 14... Qb6 {[%clk 0:02:56.3]} 15. Ne4 {[%clk 0:02:38.2]} 15...
Be7 {[%clk 0:02:56.2]} 16. Qd3 {[%clk 0:02:35.8]} 16... h6 {[%clk 0:02:52.3]}
17. Nfd2 {[%clk 0:02:30.4]} 17... Nf6 {[%clk 0:02:49.8]} 18. Nxf6+ {[%clk
0:02:29.7]} 18... Bxf6 {[%clk 0:02:50.7]} 19. Bxb7 {[%clk 0:02:27.8]} 19... Qxb7
{[%clk 0:02:50.4]} 20. Ne4 {[%clk 0:02:27.4]} 20... Be7 {[%clk 0:02:50.1]} 21.
Qf3 {[%clk 0:02:22.9]} 21... Qd5 {[%clk 0:02:45.5]} 22. Kg2 {[%clk 0:02:20.9]}
22... Rab8 {[%clk 0:02:41.4]} 23. axb5 {[%clk 0:02:16.6]} 23... Rxb5 {[%clk
0:02:34.9]} 24. Re2 {[%clk 0:02:07.2]} 24... Rfb8 {[%clk 0:02:34.9]} 25. Rxa6
{[%clk 0:01:48.6]} 25... Rxb2 {[%clk 0:02:24]} 26. Rxb2 {[%clk 0:01:43.6]} 26...
Rxb2 {[%clk 0:02:24.9]} 27. Ra7 {[%clk 0:01:41.8]} 27... Bf8 {[%clk 0:02:15.6]}
28. Qxf7+ {[%clk 0:01:35]} 28... Kh7 {[%clk 0:02:11.4]} 29. Qf3 {[%clk
0:01:23.7]} 29... Qf5 {[%clk 0:02:03.7]} 30. Nf6+ {[%clk 0:01:07.3]} 30... Kh8
{[%clk 0:01:45.1]} 31. Qxf5 {[%clk 0:00:42.6]} 31... exf5 {[%clk 0:01:46]} 32.
Nd5 {[%clk 0:00:38.9]} 32... Rb8 {[%clk 0:01:38.6]} 33. Rf7 {[%clk 0:00:36.1]}
33... Kg8 {[%clk 0:01:35.9]} 34. Rxf5 {[%clk 0:00:34.7]} 34... g6 {[%clk
0:01:35]} 35. Rf6 {[%clk 0:00:32.7]} 35... Kg7 {[%clk 0:01:33.3]} 36. Re6 {[%clk
0:00:32.4]} 36... Rb5 {[%clk 0:01:29.6]} 37. c4 {[%clk 0:00:31.2]} 37... Rb2
{[%clk 0:01:29.4]} 38. Re3 {[%clk 0:00:28.8]} 38... Rd2 {[%clk 0:01:27.4]} 39.
Nf4 {[%clk 0:00:27]} 39... Kf7 {[%clk 0:01:25.6]} 40. Rd3 {[%clk 0:00:26.7]}
40... Rc2 {[%clk 0:01:26.1]} 41. c5 {[%clk 0:00:24]} 41... dxc5 {[%clk 0:01:27]}
42. dxc5 {[%clk 0:00:23.9]} 42... Bxc5 {[%clk 0:01:27.9]} 43. Rf3 {[%clk
0:00:23.5]} 43... g5 {[%clk 0:01:16.5]} 44. hxg5 {[%clk 0:00:21]} 44... hxg5
{[%clk 0:01:17.4]} 45. Nd3+ {[%clk 0:00:19.3]} 45... Kg6 {[%clk 0:01:17.2]} 46.
Nxc5 {[%clk 0:00:17.7]} 46... Rxc5 {[%clk 0:01:18.1]} 47. Ra3 {[%clk 0:00:17]}
47... Rc6 {[%clk 0:01:16.7]} 48. Ra4 {[%clk 0:00:16]} 48... Rb6 {[%clk
0:01:16.7]} 49. Kf3 {[%clk 0:00:15.6]} 49... Rf6+ {[%clk 0:01:16.8]} 50. Kg2
{[%clk 0:00:14.5]} 50... Rb6 {[%clk 0:01:16.2]} 51. Kh3 {[%clk 0:00:14.1]} 51...
Rf6 {[%clk 0:01:15.1]} 52. Ra2 {[%clk 0:00:12]} 52... Kh5 {[%clk 0:01:13.3]} 53.
f4 {[%clk 0:00:10.4]} 53... gxf4 {[%clk 0:01:12.5]} 54. gxf4 {[%clk 0:00:10.2]}
54... Rxf4 {[%clk 0:01:13.4]} 55. Re2 {[%clk 0:00:09.1]} 55... Kg5 {[%clk
0:01:13]} 56. Kg3 {[%clk 0:00:08.2]} 56... Ra4 {[%clk 0:01:11.8]} 57. Re5+
{[%clk 0:00:07.2]} 57... Kf6 {[%clk 0:01:11.7]} 58. Rd5 {[%clk 0:00:07.2]} 58...
Ke6 {[%clk 0:01:11]} 59. Rc5 {[%clk 0:00:07.3]} 59... Ra3+ {[%clk 0:01:11]} 60.
Rc3 {[%clk 0:00:06.9]} 60... Rxc3+ {[%clk 0:01:11]} 0-1

[Event "*** SCC Grand Prix: Titled Tuesday Blitz"]
[Site "Chess.com"]
[Date "2020.06.02"]
[Round "5"]
[White "colegiodemadrid"]
[Black "arminmusovic"]
[Result "0-1"]
[WhiteElo "2377"]
[BlackElo "2533"]
[TimeControl "180+1"]
[EndTime "10:59:05 PDT"]
[Termination "arminmusovic won by resignation"]

1. e4 {[%clk 0:03:00.9]} 1... c6 {[%clk 0:02:59.6]} 2. d4 {[%clk 0:03:00]} 2...
d5 {[%clk 0:03:00.5]} 3. e5 {[%clk 0:03:00.5]} 3... c5 {[%clk 0:03:00.6]} 4.
dxc5 {[%clk 0:03:00.1]} 4... Nc6 {[%clk 0:03:00.7]} 5. a3 {[%clk 0:02:58.3]}
5... e6 {[%clk 0:03:01.1]} 6. Nf3 {[%clk 0:02:57.6]} 6... Bxc5 {[%clk
0:02:57.8]} 7. b4 {[%clk 0:02:57.9]} 7... Bb6 {[%clk 0:02:58.2]} 8. Bb2 {[%clk
0:02:57.6]} 8... Nge7 {[%clk 0:02:58.4]} 9. Bd3 {[%clk 0:02:56.8]} 9... Ng6
{[%clk 0:02:57.3]} 10. O-O {[%clk 0:02:52.9]} 10... O-O {[%clk 0:02:48.7]} 11.
Re1 {[%clk 0:02:48.7]} 11... Bd7 {[%clk 0:02:40.6]} 12. Nbd2 {[%clk 0:02:40]}
12... Rc8 {[%clk 0:02:37.9]} 13. c4 {[%clk 0:02:37.7]} 13... Nf4 {[%clk
0:02:18]} 14. Bf1 {[%clk 0:02:33.9]} 14... a6 {[%clk 0:02:10.2]} 15. g3 {[%clk
0:02:10.1]} 15... Ng6 {[%clk 0:02:09.6]} 16. h4 {[%clk 0:02:10.1]} 16... h6
{[%clk 0:01:57.1]} 17. Bd3 {[%clk 0:02:05.4]} 17... Nge7 {[%clk 0:01:57.4]} 18.
Rc1 {[%clk 0:02:00.1]} 18... Ba7 {[%clk 0:01:48.7]} 19. Bb1 {[%clk 0:01:56.9]}
19... Nf5 {[%clk 0:01:37.5]} 20. Bxf5 {[%clk 0:01:47]} 20... exf5 {[%clk
0:01:38]} 21. cxd5 {[%clk 0:01:47.4]} 21... Ne7 {[%clk 0:01:37.1]} 22. Rxc8
{[%clk 0:01:04.8]} 22... Bxc8 {[%clk 0:01:38]} 23. d6 {[%clk 0:01:00.7]} 23...
Ng6 {[%clk 0:01:38]} 24. h5 {[%clk 0:00:55.1]} 24... f4 {[%clk 0:01:28.2]} 25.
hxg6 {[%clk 0:00:52.4]} 25... fxg3 {[%clk 0:01:28.5]} 26. Bd4 {[%clk 0:00:47.9]}
26... gxf2+ {[%clk 0:01:25.6]} 27. Bxf2 {[%clk 0:00:46]} 27... Bxf2+ {[%clk
0:01:25.3]} 28. Kxf2 {[%clk 0:00:46.9]} 28... fxg6 {[%clk 0:01:23.4]} 29. Qb3+
{[%clk 0:00:44.5]} 29... Kh7 {[%clk 0:01:22.3]} 30. Rg1 {[%clk 0:00:42.2]} 30...
Qh4+ {[%clk 0:01:14.1]} 31. Rg3 {[%clk 0:00:34.9]} 31... Qh2+ {[%clk 0:01:04.4]}
32. Rg2 {[%clk 0:00:34.8]} 32... Qxe5 {[%clk 0:01:00.3]} 33. Qe3 {[%clk
0:00:26.8]} 33... Qxd6 {[%clk 0:00:56.5]} 34. Qc5 {[%clk 0:00:27]} 34... Qf4
{[%clk 0:00:53.6]} 35. Qe3 {[%clk 0:00:26.5]} 35... Qh4+ {[%clk 0:00:51.3]} 36.
Ke2 {[%clk 0:00:24.7]} 36... Qh5 {[%clk 0:00:51.4]} 37. Qc5 {[%clk 0:00:21.1]}
37... Re8+ {[%clk 0:00:49.8]} 38. Kf2 {[%clk 0:00:20.4]} 38... Bg4 {[%clk
0:00:44.9]} 39. Qxh5 {[%clk 0:00:20.1]} 39... Bxh5 {[%clk 0:00:44.6]} 40. Nc4
{[%clk 0:00:20]} 40... Rf8 {[%clk 0:00:43.7]} 41. Rg3 {[%clk 0:00:19.9]} 41...
g5 {[%clk 0:00:44.4]} 42. Ke3 {[%clk 0:00:20.1]} 42... Re8+ {[%clk 0:00:44.3]}
43. Nfe5 {[%clk 0:00:20.4]} 43... b5 {[%clk 0:00:45.1]} 44. Kd4 {[%clk
0:00:18.8]} 44... bxc4 {[%clk 0:00:44.8]} 45. Nxc4 {[%clk 0:00:19.4]} 45... Rd8+
{[%clk 0:00:44.4]} 46. Kc3 {[%clk 0:00:19.5]} 46... Be2 {[%clk 0:00:44.6]} 47.
Ne5 {[%clk 0:00:17.4]} 47... Rd5 {[%clk 0:00:39.9]} 48. Re3 {[%clk 0:00:17.5]}
48... Bb5 {[%clk 0:00:38.9]} 49. Kb3 {[%clk 0:00:15.5]} 49... Be8 {[%clk
0:00:37.3]} 50. a4 {[%clk 0:00:15.6]} 50... h5 {[%clk 0:00:37.8]} 51. Kc3 {[%clk
0:00:15.6]} 51... g4 {[%clk 0:00:37.5]} 52. Kc4 {[%clk 0:00:16]} 52... Rd1
{[%clk 0:00:37.1]} 53. Nd3 {[%clk 0:00:15.7]} 53... Bf7+ {[%clk 0:00:36.2]} 54.
Kc5 {[%clk 0:00:15.1]} 54... h4 {[%clk 0:00:35.8]} 55. Ne5 {[%clk 0:00:14.2]}
55... Rd5+ {[%clk 0:00:34.6]} 56. Kc6 {[%clk 0:00:13.8]} 56... Rxe5 {[%clk
0:00:31.5]} 57. Rxe5 {[%clk 0:00:13.2]} 57... h3 {[%clk 0:00:32]} 58. Rf5 {[%clk
0:00:13.5]} 58... h2 {[%clk 0:00:31]} 59. Rf1 {[%clk 0:00:13.7]} 59... g3 {[%clk
0:00:31.5]} 0-1

[Event "*** SCC Grand Prix: Titled Tuesday Blitz"]
[Site "Chess.com"]
[Date "2020.06.02"]
[Round "5"]
[White "sergeikim"]
[Black "alexsergeyev"]
[Result "0-1"]
[WhiteElo "2464"]
[BlackElo "2320"]
[TimeControl "180+1"]
[EndTime "10:59:05 PDT"]
[Termination "alexsergeyev won by resignation"]

1. d4 {[%clk 0:03:00.9]} 1... d5 {[%clk 0:02:59.1]} 2. c4 {[%clk 0:03:00.5]}
2... c6 {[%clk 0:02:58.5]} 3. Nf3 {[%clk 0:02:59.6]} 3... Nf6 {[%clk 0:02:58.4]}
4. Qc2 {[%clk 0:02:59.4]} 4... dxc4 {[%clk 0:02:52.8]} 5. Qxc4 {[%clk
0:02:58.6]} 5... b5 {[%clk 0:02:52.1]} 6. Qc2 {[%clk 0:02:57.5]} 6... Bb7 {[%clk
0:02:50.6]} 7. e3 {[%clk 0:02:52.5]} 7... a6 {[%clk 0:02:47.8]} 8. Bd3 {[%clk
0:02:50.9]} 8... e6 {[%clk 0:02:46.4]} 9. O-O {[%clk 0:02:50.5]} 9... c5 {[%clk
0:02:35.6]} 10. Nbd2 {[%clk 0:02:47.1]} 10... Nc6 {[%clk 0:02:27.6]} 11. a3
{[%clk 0:02:45.9]} 11... cxd4 {[%clk 0:02:25.4]} 12. exd4 {[%clk 0:02:43.2]}
12... Rc8 {[%clk 0:02:24.4]} 13. Qd1 {[%clk 0:02:37.2]} 13... Nxd4 {[%clk
0:02:22.8]} 14. Nxd4 {[%clk 0:02:34.5]} 14... Qxd4 {[%clk 0:02:21.8]} 15. Nf3
{[%clk 0:02:34.9]} 15... Qg4 {[%clk 0:02:20.6]} 16. Be2 {[%clk 0:02:23.8]} 16...
Rd8 {[%clk 0:02:14.8]} 17. Qe1 {[%clk 0:02:19.6]} 17... Bd6 {[%clk 0:02:10.9]}
18. h3 {[%clk 0:02:18.4]} 18... Qe4 {[%clk 0:02:01.9]} 19. Bg5 {[%clk
0:02:04.2]} 19... h6 {[%clk 0:01:53.6]} 20. Be3 {[%clk 0:01:49]} 20... O-O
{[%clk 0:01:42.3]} 21. Rd1 {[%clk 0:01:47.2]} 21... Bb8 {[%clk 0:01:34.9]} 22.
Qb4 {[%clk 0:01:34.4]} 22... Qxb4 {[%clk 0:01:31.9]} 23. axb4 {[%clk 0:01:33.8]}
23... Rd5 {[%clk 0:01:20]} 24. Rxd5 {[%clk 0:01:27.2]} 24... Nxd5 {[%clk
0:01:18.9]} 25. Bc5 {[%clk 0:01:26.6]} 25... Rc8 {[%clk 0:01:18.5]} 26. Bd3
{[%clk 0:01:21.4]} 26... Nf4 {[%clk 0:01:11.3]} 27. Rd1 {[%clk 0:01:13]} 27...
Nxh3+ {[%clk 0:00:59.2]} 28. Kf1 {[%clk 0:01:09.6]} 28... Nf4 {[%clk 0:00:58.1]}
29. Bb1 {[%clk 0:01:05.3]} 29... g5 {[%clk 0:00:49]} 30. Rd7 {[%clk 0:00:55.5]}
30... Bc6 {[%clk 0:00:48.7]} 31. Rd1 {[%clk 0:00:53.1]} 31... Nxg2 {[%clk
0:00:45.6]} 32. Kxg2 {[%clk 0:00:50.8]} 32... g4 {[%clk 0:00:45.2]} 33. Kf1
{[%clk 0:00:47.8]} 33... Bxf3 {[%clk 0:00:43.7]} 34. Rd7 {[%clk 0:00:44.2]}
34... Bc6 {[%clk 0:00:41.4]} 35. Rd4 {[%clk 0:00:42.3]} 35... h5 {[%clk
0:00:39.7]} 36. Bd3 {[%clk 0:00:35.2]} 36... f5 {[%clk 0:00:34.3]} 37. Bc2
{[%clk 0:00:31.8]} 37... Kf7 {[%clk 0:00:33.6]} 38. Bb3 {[%clk 0:00:30.9]} 38...
h4 {[%clk 0:00:29.3]} 39. Rd1 {[%clk 0:00:19.7]} 39... h3 {[%clk 0:00:20.9]} 40.
Re1 {[%clk 0:00:20]} 40... Re8 {[%clk 0:00:19.5]} 41. Ke2 {[%clk 0:00:15.3]}
41... h2 {[%clk 0:00:19.1]} 42. f4 {[%clk 0:00:14.3]} 42... h1=Q {[%clk
0:00:18.5]} 43. Rxh1 {[%clk 0:00:13.9]} 43... Bxh1 {[%clk 0:00:18.8]} 44. Ke3
{[%clk 0:00:14.8]} 44... Bd5 {[%clk 0:00:19]} 45. Bc2 {[%clk 0:00:14.1]} 45...
Rh8 {[%clk 0:00:18.5]} 46. Kd4 {[%clk 0:00:13]} 46... Bxf4 {[%clk 0:00:16.2]}
47. Bb6 {[%clk 0:00:12.3]} 47... Bd6 {[%clk 0:00:15.2]} 48. Bc5 {[%clk
0:00:11.1]} 48... Ke7 {[%clk 0:00:15.3]} 49. Bxd6+ {[%clk 0:00:10.4]} 49... Kxd6
{[%clk 0:00:15.3]} 0-1